[Event "Late-Titled-Tuesday-Blitz-March-19-2024"]
[Site "Chess.com"]
[Date "2024.03.19"]
[Round "7"]
[White "AlexPapasimakopoulos"]
[Black "HaryKane"]
[Result "1-0"]
[WhiteElo "2758"]
[BlackElo "2588"]
[TimeControl "180+1"]
[EndTime "15:15:21 PDT"]
[Termination "AlexPapasimakopoulos won by resignation"]

1. d4 {[%clk 0:03:00.9]} 1... e6 {[%clk 0:02:56.7]} 2. c4 {[%clk 0:03:00.1]}
2... f5 {[%clk 0:02:57.2]} 3. g3 {[%clk 0:02:59.9]} 3... Nf6 {[%clk 0:02:55.9]}
4. Bg2 {[%clk 0:03:00.4]} 4... Bb4+ {[%clk 0:02:55.2]} 5. Nd2 {[%clk 0:03:00.5]}
5... O-O {[%clk 0:02:43.5]} 6. Nf3 {[%clk 0:03:00.3]} 6... d5 {[%clk 0:02:43.4]}
7. O-O {[%clk 0:02:59.9]} 7... c6 {[%clk 0:02:42.7]} 8. a3 {[%clk 0:02:57.2]}
8... Bd6 {[%clk 0:02:42.4]} 9. b4 {[%clk 0:02:54.9]} 9... Nbd7 {[%clk
0:02:37.7]} 10. Qb3 {[%clk 0:02:49.8]} 10... Qe7 {[%clk 0:02:32.9]} 11. Bb2
{[%clk 0:02:49.3]} 11... Ne4 {[%clk 0:02:31]} 12. Rad1 {[%clk 0:02:41.8]} 12...
g5 {[%clk 0:02:22.3]} 13. Ne5 {[%clk 0:02:40.6]} 13... Qg7 {[%clk 0:02:13.9]}
14. Nd3 {[%clk 0:02:36.1]} 14... h5 {[%clk 0:02:11.1]} 15. f3 {[%clk 0:02:25]}
15... Nxd2 {[%clk 0:01:54.9]} 16. Rxd2 {[%clk 0:02:24]} 16... h4 {[%clk
0:01:51.5]} 17. gxh4 {[%clk 0:02:07.3]} 17... gxh4 {[%clk 0:01:49.3]} 18. e4
{[%clk 0:01:52.7]} 18... fxe4 {[%clk 0:01:39]} 19. fxe4 {[%clk 0:01:52.2]} 19...
Rxf1+ {[%clk 0:01:36.4]} 20. Kxf1 {[%clk 0:01:53.1]} 20... Bxh2 {[%clk
0:01:34.6]} 21. cxd5 {[%clk 0:01:50]} 21... exd5 {[%clk 0:01:33.8]} 22. exd5
{[%clk 0:01:50.1]} 22... Nf6 {[%clk 0:00:54.6]} 23. dxc6+ {[%clk 0:01:49]} 23...
Kh8 {[%clk 0:00:54.7]} 24. cxb7 {[%clk 0:01:36.1]} 24... Bxb7 {[%clk 0:00:48.2]}
25. Bxb7 {[%clk 0:01:35.2]} 25... Qxb7 {[%clk 0:00:49.1]} 26. d5 {[%clk
0:01:35]} 26... Rf8 {[%clk 0:00:38.5]} 27. Rxh2 {[%clk 0:01:35]} 27... Kg8
{[%clk 0:00:38.2]} 28. d6+ {[%clk 0:01:30.8]} 28... Nd5+ {[%clk 0:00:34.7]} 29.
Rf2 {[%clk 0:01:25.2]} 29... Rxf2+ {[%clk 0:00:23]} 30. Kxf2 {[%clk 0:01:23.3]}
30... Qf7+ {[%clk 0:00:23.6]} 31. Ke1 {[%clk 0:01:17.5]} 31... h3 {[%clk
0:00:21.3]} 32. Be5 {[%clk 0:01:14.8]} 32... Qf3 {[%clk 0:00:20]} 33. Qc4 {[%clk
0:01:08.9]} 33... Kf8 {[%clk 0:00:15.5]} 34. Kd2 {[%clk 0:01:03.6]} 34... Qe3+
{[%clk 0:00:10.3]} 35. Kc2 {[%clk 0:01:03.5]} 35... Qe2+ {[%clk 0:00:10.6]} 36.
Kb3 {[%clk 0:01:03.9]} 36... Qd1+ {[%clk 0:00:10.4]} 37. Qc2 {[%clk 0:01:02]}
37... Qf3 {[%clk 0:00:10.6]} 38. Qf2 {[%clk 0:00:58.4]} 38... Qxf2 {[%clk
0:00:09.4]} 39. Nxf2 {[%clk 0:00:59.3]} 1-0

[Event "Late-Titled-Tuesday-Blitz-March-19-2024"]
[Site "Chess.com"]
[Date "2024.03.19"]
[Round "7"]
[White "Licancabur"]
[Black "angelgab3"]
[Result "0-1"]
[WhiteElo "2497"]
[BlackElo "2642"]
[TimeControl "180+1"]
[EndTime "15:15:21 PDT"]
[Termination "angelgab3 won by resignation"]

1. d4 {[%clk 0:03:00.9]} 1... Nf6 {[%clk 0:02:59.6]} 2. Bg5 {[%clk 0:03:00.4]}
2... e6 {[%clk 0:03:00.4]} 3. e4 {[%clk 0:03:00]} 3... h6 {[%clk 0:03:00.8]} 4.
Bxf6 {[%clk 0:02:59.4]} 4... Qxf6 {[%clk 0:03:01.7]} 5. c3 {[%clk 0:02:59.2]}
5... d6 {[%clk 0:03:01.8]} 6. Bd3 {[%clk 0:02:58]} 6... g6 {[%clk 0:03:01.6]} 7.
Ne2 {[%clk 0:02:56.1]} 7... e5 {[%clk 0:03:00.9]} 8. O-O {[%clk 0:02:54.1]} 8...
Bg7 {[%clk 0:03:01.5]} 9. f4 {[%clk 0:02:51.3]} 9... Qe7 {[%clk 0:03:01.5]} 10.
Nd2 {[%clk 0:02:47.4]} 10... O-O {[%clk 0:02:51.2]} 11. Qe1 {[%clk 0:02:32.3]}
11... Nd7 {[%clk 0:02:47.1]} 12. Qg3 {[%clk 0:02:19.4]} 12... Nf6 {[%clk
0:02:36.9]} 13. Qh4 {[%clk 0:01:58.1]} 13... Bd7 {[%clk 0:02:01.4]} 14. Rae1
{[%clk 0:01:55.8]} 14... Rae8 {[%clk 0:01:44.1]} 15. Kh1 {[%clk 0:01:42]} 15...
b5 {[%clk 0:01:43.5]} 16. a3 {[%clk 0:01:40.7]} 16... c5 {[%clk 0:01:41.7]} 17.
Bb1 {[%clk 0:00:56.5]} 17... Nd5 {[%clk 0:01:18.2]} 18. Qxe7 {[%clk 0:00:48.2]}
18... Nxe7 {[%clk 0:01:19.1]} 19. dxe5 {[%clk 0:00:44.1]} 19... dxe5 {[%clk
0:01:18.5]} 20. f5 {[%clk 0:00:44.4]} 20... Nc6 {[%clk 0:01:01.6]} 21. Nb3
{[%clk 0:00:39.6]} 21... c4 {[%clk 0:00:58.9]} 22. Nc5 {[%clk 0:00:37.9]} 22...
Bc8 {[%clk 0:00:59.8]} 23. Rd1 {[%clk 0:00:26]} 23... Rd8 {[%clk 0:00:59.4]} 24.
Rd5 {[%clk 0:00:26.1]} 24... gxf5 {[%clk 0:00:25.9]} 25. exf5 {[%clk 0:00:25.6]}
25... Rxd5 {[%clk 0:00:24.4]} 0-1

[Event "Late-Titled-Tuesday-Blitz-March-19-2024"]
[Site "Chess.com"]
[Date "2024.03.19"]
[Round "7"]
[White "GM_shahin"]
[Black "Nicolik"]
[Result "1-0"]
[WhiteElo "2874"]
[BlackElo "2526"]
[TimeControl "180+1"]
[EndTime "15:15:24 PDT"]
[Termination "GM_shahin won by checkmate"]

1. e4 {[%clk 0:03:00.9]} 1... c5 {[%clk 0:02:57.3]} 2. Nf3 {[%clk 0:03:01.1]}
2... e6 {[%clk 0:02:57.2]} 3. d4 {[%clk 0:03:01]} 3... cxd4 {[%clk 0:02:58.1]}
4. Nxd4 {[%clk 0:03:01.9]} 4... Nf6 {[%clk 0:02:58.7]} 5. Bd3 {[%clk 0:03:01]}
5... Nc6 {[%clk 0:02:58.7]} 6. Nxc6 {[%clk 0:03:00.1]} 6... bxc6 {[%clk
0:02:59.6]} 7. O-O {[%clk 0:02:49.7]} 7... d5 {[%clk 0:02:59]} 8. Nd2 {[%clk
0:02:45.9]} 8... Be7 {[%clk 0:02:58.9]} 9. Qe2 {[%clk 0:02:45.5]} 9... O-O
{[%clk 0:02:59.3]} 10. b3 {[%clk 0:02:39.2]} 10... Nd7 {[%clk 0:02:57.9]} 11.
Bb2 {[%clk 0:02:39.8]} 11... Nc5 {[%clk 0:02:57.6]} 12. Rad1 {[%clk 0:02:39.4]}
12... Nxd3 {[%clk 0:02:57.2]} 13. Qxd3 {[%clk 0:02:37.8]} 13... a5 {[%clk
0:02:57]} 14. Qg3 {[%clk 0:02:35.4]} 14... Bf6 {[%clk 0:02:56.7]} 15. Bxf6
{[%clk 0:02:35.1]} 15... Qxf6 {[%clk 0:02:57.6]} 16. Nf3 {[%clk 0:02:25.7]}
16... Ba6 {[%clk 0:02:33.2]} 17. Rfe1 {[%clk 0:02:22.2]} 17... Qc3 {[%clk
0:02:32.5]} 18. Nd4 {[%clk 0:02:05.3]} 18... Qxg3 {[%clk 0:02:30]} 19. hxg3
{[%clk 0:02:06.2]} 19... Rfc8 {[%clk 0:02:29.9]} 20. Nf3 {[%clk 0:02:01.3]}
20... a4 {[%clk 0:02:24.9]} 21. Ne5 {[%clk 0:01:58.4]} 21... Ra7 {[%clk
0:02:14.2]} 22. Rd4 {[%clk 0:01:52]} 22... f6 {[%clk 0:02:09]} 23. Nf3 {[%clk
0:01:48]} 23... axb3 {[%clk 0:01:12.5]} 24. axb3 {[%clk 0:01:48.9]} 24... Bb5
{[%clk 0:01:02.2]} 25. exd5 {[%clk 0:01:48]} 25... exd5 {[%clk 0:00:43.4]} 26.
Rb4 {[%clk 0:01:44.2]} 26... Ra2 {[%clk 0:00:41.3]} 27. c4 {[%clk 0:01:15]}
27... dxc4 {[%clk 0:00:31]} 28. bxc4 {[%clk 0:01:15.9]} 28... Ba6 {[%clk
0:00:31.1]} 29. Re7 {[%clk 0:01:12.9]} 29... c5 {[%clk 0:00:28.1]} 30. Rb6
{[%clk 0:01:09.7]} 30... g5 {[%clk 0:00:16.8]} 31. Rxf6 {[%clk 0:01:09.3]} 31...
Bxc4 {[%clk 0:00:15.9]} 32. Nxg5 {[%clk 0:01:08.3]} 32... Bd3 {[%clk 0:00:15.5]}
33. Rff7 {[%clk 0:01:05]} 33... Bg6 {[%clk 0:00:15.9]} 34. Rg7+ {[%clk
0:01:04.9]} 34... Kh8 {[%clk 0:00:16.6]} 35. Nxh7 {[%clk 0:01:05.5]} 35... Bd3
{[%clk 0:00:13.5]} 36. Nf6 {[%clk 0:01:02.7]} 36... Ra1+ {[%clk 0:00:11.5]} 37.
Kh2 {[%clk 0:01:02.7]} 37... Rc6 {[%clk 0:00:11.5]} 38. Rgf7 {[%clk 0:01:02.1]}
38... Ra8 {[%clk 0:00:10.1]} 39. Rh7+ {[%clk 0:01:02.1]} 39... Bxh7 {[%clk
0:00:09.3]} 40. Rxh7# {[%clk 0:01:03]} 1-0

[Event "Late-Titled-Tuesday-Blitz-March-19-2024"]
[Site "Chess.com"]
[Date "2024.03.19"]
[Round "7"]
[White "Oleksandr_Bortnyk"]
[Black "Fandorine"]
[Result "1-0"]
[WhiteElo "3078"]
[BlackElo "2931"]
[TimeControl "180+1"]
[EndTime "15:15:32 PDT"]
[Termination "Oleksandr_Bortnyk won by resignation"]

1. e4 {[%clk 0:02:59.5]} 1... e5 {[%clk 0:02:58.9]} 2. Nf3 {[%clk 0:02:53.5]}
2... Nc6 {[%clk 0:02:57.1]} 3. Bb5 {[%clk 0:02:53.5]} 3... a6 {[%clk 0:02:56.1]}
4. Ba4 {[%clk 0:02:53.7]} 4... b5 {[%clk 0:02:55.3]} 5. Bb3 {[%clk 0:02:53.8]}
5... g6 {[%clk 0:02:56]} 6. c3 {[%clk 0:02:41]} 6... Bg7 {[%clk 0:02:55.2]} 7.
d3 {[%clk 0:02:34.8]} 7... h6 {[%clk 0:02:48.4]} 8. Be3 {[%clk 0:02:22.9]} 8...
Nge7 {[%clk 0:02:47.3]} 9. Nbd2 {[%clk 0:02:18.7]} 9... d5 {[%clk 0:02:42.9]}
10. Bc5 {[%clk 0:02:03.6]} 10... Be6 {[%clk 0:02:36.3]} 11. a4 {[%clk
0:01:57.9]} 11... Rb8 {[%clk 0:02:14.9]} 12. axb5 {[%clk 0:01:56.8]} 12... axb5
{[%clk 0:02:15.8]} 13. O-O {[%clk 0:01:46.9]} 13... O-O {[%clk 0:02:10.9]} 14.
Re1 {[%clk 0:01:45]} 14... Re8 {[%clk 0:02:10.8]} 15. h3 {[%clk 0:01:40]} 15...
Qd7 {[%clk 0:02:01.1]} 16. Qc2 {[%clk 0:01:32]} 16... Rbd8 {[%clk 0:01:50.8]}
17. Ra6 {[%clk 0:01:24.6]} 17... Qc8 {[%clk 0:01:41]} 18. Rea1 {[%clk
0:01:22.3]} 18... Kh7 {[%clk 0:01:31.9]} 19. Nf1 {[%clk 0:01:20.2]} 19... Nb8
{[%clk 0:01:14.3]} 20. Ra8 {[%clk 0:01:14.8]} 20... Qd7 {[%clk 0:00:53.1]} 21.
Ne3 {[%clk 0:00:59.9]} 21... dxe4 {[%clk 0:00:50]} 22. dxe4 {[%clk 0:00:55.9]}
22... Qc6 {[%clk 0:00:42.4]} 23. Bb4 {[%clk 0:00:32.1]} 23... Bxb3 {[%clk
0:00:16.2]} 24. Qxb3 {[%clk 0:00:33]} 24... Kg8 {[%clk 0:00:16.7]} 25. Bxe7
{[%clk 0:00:31.4]} 25... Rxe7 {[%clk 0:00:16.9]} 26. Nd5 {[%clk 0:00:31.6]}
26... Ree8 {[%clk 0:00:17.5]} 27. R1a7 {[%clk 0:00:29.6]} 27... Nd7 {[%clk
0:00:03.2]} 28. Rxd8 {[%clk 0:00:27.1]} 1-0

[Event "Late-Titled-Tuesday-Blitz-March-19-2024"]
[Site "Chess.com"]
[Date "2024.03.19"]
[Round "7"]
[White "LeninGuerra"]
[Black "protectiago"]
[Result "1-0"]
[WhiteElo "2671"]
[BlackElo "2076"]
[TimeControl "180+1"]
[EndTime "15:15:37 PDT"]
[Termination "LeninGuerra won by checkmate"]

1. e4 {[%clk 0:03:00.9]} 1... e5 {[%clk 0:02:59.6]} 2. Nf3 {[%clk 0:03:00.3]}
2... Nc6 {[%clk 0:02:59.1]} 3. Bb5 {[%clk 0:03:00.5]} 3... a6 {[%clk 0:02:59.2]}
4. Ba4 {[%clk 0:03:01]} 4... Nf6 {[%clk 0:02:59.4]} 5. Qe2 {[%clk 0:03:01.4]}
5... b5 {[%clk 0:02:56.6]} 6. Bb3 {[%clk 0:03:01.6]} 6... Be7 {[%clk 0:02:56.5]}
7. O-O {[%clk 0:03:02]} 7... d6 {[%clk 0:02:55.7]} 8. c3 {[%clk 0:03:02.6]} 8...
O-O {[%clk 0:02:55.1]} 9. Rd1 {[%clk 0:03:02.7]} 9... Bg4 {[%clk 0:02:51.4]} 10.
d3 {[%clk 0:03:01.5]} 10... Na5 {[%clk 0:02:46.1]} 11. Bc2 {[%clk 0:03:00.7]}
11... c5 {[%clk 0:02:46.3]} 12. Nbd2 {[%clk 0:03:01.3]} 12... Nc6 {[%clk
0:02:19]} 13. h3 {[%clk 0:03:01]} 13... Bxf3 {[%clk 0:02:12.7]} 14. Qxf3 {[%clk
0:02:55.3]} 14... d5 {[%clk 0:02:11.1]} 15. Nf1 {[%clk 0:02:54.3]} 15... dxe4
{[%clk 0:02:09.7]} 16. dxe4 {[%clk 0:02:53.6]} 16... Qc7 {[%clk 0:02:08.6]} 17.
g4 {[%clk 0:02:53.6]} 17... Rfd8 {[%clk 0:02:06.4]} 18. Be3 {[%clk 0:02:52.9]}
18... Rxd1 {[%clk 0:02:02]} 19. Rxd1 {[%clk 0:02:51.6]} 19... Rd8 {[%clk
0:02:01.5]} 20. Rxd8+ {[%clk 0:02:52.1]} 20... Nxd8 {[%clk 0:02:01.6]} 21. Ng3
{[%clk 0:02:52]} 21... Ne6 {[%clk 0:01:59.8]} 22. Nf5 {[%clk 0:02:51.8]} 22...
Bf8 {[%clk 0:01:58.9]} 23. Nh6+ {[%clk 0:02:44.9]} 23... gxh6 {[%clk 0:01:34.1]}
24. Qxf6 {[%clk 0:02:43.3]} 24... Bg7 {[%clk 0:01:33.8]} 25. Qf5 {[%clk
0:02:41.1]} 25... Qe7 {[%clk 0:01:17.7]} 26. Kg2 {[%clk 0:02:29.6]} 26... c4
{[%clk 0:00:55.8]} 27. Kg3 {[%clk 0:02:03.5]} 27... Qd6 {[%clk 0:00:55.4]} 28.
h4 {[%clk 0:02:01.1]} 28... Nf4 {[%clk 0:00:51.2]} 29. Kf3 {[%clk 0:01:35.2]}
29... Nd3 {[%clk 0:00:48.3]} 30. Ke2 {[%clk 0:01:20.6]} 30... Nxb2 {[%clk
0:00:46.2]} 31. Qc8+ {[%clk 0:01:06.3]} 31... Bf8 {[%clk 0:00:44.7]} 32. Ba7
{[%clk 0:01:06.8]} 32... Nd3 {[%clk 0:00:29.4]} 33. Bb8 {[%clk 0:01:04.1]} 33...
Nf4+ {[%clk 0:00:24.7]} 34. Ke1 {[%clk 0:01:04.3]} 34... Qa3 {[%clk 0:00:19.5]}
35. Kd2 {[%clk 0:01:03.7]} 35... Qxa2 {[%clk 0:00:11.3]} 36. Bxe5 {[%clk
0:00:56.6]} 36... Ne6 {[%clk 0:00:10.9]} 37. Bd6 {[%clk 0:00:52.5]} 37... Qb2
{[%clk 0:00:09.4]} 38. f4 {[%clk 0:00:52.7]} 38... b4 {[%clk 0:00:09.2]} 39.
Bxb4 {[%clk 0:00:51.7]} 39... Nxf4 {[%clk 0:00:09.5]} 40. Qxf8# {[%clk
0:00:50.1]} 1-0

[Event "Late-Titled-Tuesday-Blitz-March-19-2024"]
[Site "Chess.com"]
[Date "2024.03.19"]
[Round "7"]
[White "Statham_01"]
[Black "norwaytoadog"]
[Result "1-0"]
[WhiteElo "2573"]
[BlackElo "2363"]
[TimeControl "180+1"]
[EndTime "15:15:38 PDT"]
[Termination "Statham_01 won on time"]

1. e4 {[%clk 0:03:00.9]} 1... c5 {[%clk 0:02:59.3]} 2. Nf3 {[%clk 0:03:00.6]}
2... Nc6 {[%clk 0:02:59.6]} 3. b4 {[%clk 0:03:00.6]} 3... cxb4 {[%clk
0:02:57.5]} 4. d4 {[%clk 0:03:01]} 4... d5 {[%clk 0:02:56.6]} 5. exd5 {[%clk
0:03:01.9]} 5... Qxd5 {[%clk 0:02:55.7]} 6. c4 {[%clk 0:03:02.8]} 6... bxc3
{[%clk 0:02:51.5]} 7. Nxc3 {[%clk 0:03:02.7]} 7... Qa5 {[%clk 0:02:47]} 8. Rb1
{[%clk 0:03:03.1]} 8... Bg4 {[%clk 0:02:35.9]} 9. Rxb7 {[%clk 0:02:52.5]} 9...
Qxc3+ {[%clk 0:01:59.3]} 10. Bd2 {[%clk 0:02:52.5]} 10... Bxf3 {[%clk
0:01:55.7]} 11. Bxc3 {[%clk 0:02:18.4]} 11... Bxd1 {[%clk 0:01:53.5]} 12. Bb5
{[%clk 0:02:17.3]} 12... O-O-O {[%clk 0:00:59.4]} 13. Bxc6 {[%clk 0:02:04.3]}
13... Ba4 {[%clk 0:00:56.4]} 14. Bf3 {[%clk 0:01:54.2]} 14... Rd6 {[%clk
0:00:39.8]} 15. Rxa7 {[%clk 0:01:30.7]} 15... Bc6 {[%clk 0:00:37.9]} 16. d5
{[%clk 0:01:03.2]} 16... Bb7 {[%clk 0:00:34]} 17. O-O {[%clk 0:00:58]} 17... Kb8
{[%clk 0:00:29.5]} 18. Bd4 {[%clk 0:00:56.5]} 18... Ra6 {[%clk 0:00:28.8]} 19.
d6 {[%clk 0:00:27.8]} 19... Bxf3 {[%clk 0:00:22.4]} 20. d7 {[%clk 0:00:17.8]}
20... Rd6 {[%clk 0:00:21]} 21. Rb1+ {[%clk 0:00:15.6]} 1-0

[Event "Late-Titled-Tuesday-Blitz-March-19-2024"]
[Site "Chess.com"]
[Date "2024.03.19"]
[Round "7"]
[White "jodarmarlon1985"]
[Black "gorgeous1083"]
[Result "1-0"]
[WhiteElo "2288"]
[BlackElo "2059"]
[TimeControl "180+1"]
[EndTime "15:15:38 PDT"]
[Termination "jodarmarlon1985 won on time"]

1. e4 {[%clk 0:03:00.9]} 1... e6 {[%clk 0:03:00.1]} 2. d4 {[%clk 0:03:00.7]}
2... d5 {[%clk 0:03:01]} 3. Nc3 {[%clk 0:03:00.8]} 3... Bb4 {[%clk 0:03:00.6]}
4. e5 {[%clk 0:03:01.1]} 4... c5 {[%clk 0:03:00.7]} 5. a3 {[%clk 0:03:01.6]}
5... Bxc3+ {[%clk 0:03:00.8]} 6. bxc3 {[%clk 0:03:02.5]} 6... Ne7 {[%clk
0:03:01.4]} 7. Qg4 {[%clk 0:03:01]} 7... O-O {[%clk 0:03:01.7]} 8. Bd3 {[%clk
0:03:00.8]} 8... f5 {[%clk 0:03:00.3]} 9. exf6 {[%clk 0:03:00.2]} 9... Rxf6
{[%clk 0:03:00.4]} 10. Qh4 {[%clk 0:02:58.2]} 10... Ng6 {[%clk 0:02:36.4]} 11.
Bxg6 {[%clk 0:02:55.4]} 11... hxg6 {[%clk 0:02:33]} 12. Ne2 {[%clk 0:02:31.8]}
12... Rf8 {[%clk 0:02:25.5]} 13. Bg5 {[%clk 0:02:29]} 13... Qe8 {[%clk
0:02:12.3]} 14. O-O {[%clk 0:02:28.5]} 14... Nc6 {[%clk 0:02:08.1]} 15. Rae1
{[%clk 0:02:22.3]} 15... Qf7 {[%clk 0:02:04.6]} 16. Ng3 {[%clk 0:02:21.4]} 16...
Bd7 {[%clk 0:01:45.6]} 17. Re3 {[%clk 0:02:20.9]} 17... cxd4 {[%clk 0:01:20.3]}
18. cxd4 {[%clk 0:02:19.4]} 18... Rac8 {[%clk 0:01:17.5]} 19. Ne2 {[%clk
0:02:18]} 19... Qf5 {[%clk 0:01:07.8]} 20. Rh3 {[%clk 0:02:15.3]} 20... Qxc2
{[%clk 0:00:49.4]} 21. Qh7+ {[%clk 0:01:50.5]} 21... Kf7 {[%clk 0:00:48.7]} 22.
Rf3+ {[%clk 0:01:51.2]} 22... Ke8 {[%clk 0:00:43.3]} 23. Rxf8+ {[%clk
0:01:50.9]} 23... Kxf8 {[%clk 0:00:42]} 24. Nf4 {[%clk 0:01:51.8]} 24... Kf7
{[%clk 0:00:30.2]} 25. Nh5 {[%clk 0:01:33.9]} 25... Rg8 {[%clk 0:00:23.5]} 26.
Bh6 {[%clk 0:01:32.2]} 26... Nxd4 {[%clk 0:00:17.6]} 27. Nxg7 {[%clk 0:01:30.6]}
27... Kf6 {[%clk 0:00:06.5]} 28. Qxg8 {[%clk 0:01:27.4]} 28... Ne2+ {[%clk
0:00:05.4]} 29. Kh1 {[%clk 0:01:27]} 29... Qe4 {[%clk 0:00:04.7]} 30. Nh5+
{[%clk 0:00:48.6]} 30... Ke7 {[%clk 0:00:04]} 31. Bf8+ {[%clk 0:00:46.3]} 31...
Kd8 {[%clk 0:00:02]} 32. Bd6+ {[%clk 0:00:43.7]} 32... Be8 {[%clk 0:00:02.3]}
33. Qxe8+ {[%clk 0:00:43.3]} 33... Kxe8 {[%clk 0:00:02.3]} 34. Nf6+ {[%clk
0:00:44.2]} 34... Kf7 {[%clk 0:00:01.3]} 35. Nxe4 {[%clk 0:00:45.1]} 35... dxe4
{[%clk 0:00:01.4]} 36. Re1 {[%clk 0:00:44.9]} 1-0

[Event "Late-Titled-Tuesday-Blitz-March-19-2024"]
[Site "Chess.com"]
[Date "2024.03.19"]
[Round "7"]
[White "Jamal-Jamal-Jamal"]
[Black "kikoveiga"]
[Result "1-0"]
[WhiteElo "2263"]
[BlackElo "2486"]
[TimeControl "180+1"]
[EndTime "15:15:40 PDT"]
[Termination "Jamal-Jamal-Jamal won on time"]

1. e4 {[%clk 0:03:00.9]} 1... c5 {[%clk 0:02:56.3]} 2. Nf3 {[%clk 0:02:59]} 2...
d6 {[%clk 0:02:49.6]} 3. d4 {[%clk 0:02:56.7]} 3... cxd4 {[%clk 0:02:44.1]} 4.
Qxd4 {[%clk 0:02:57.6]} 4... Nf6 {[%clk 0:02:44.7]} 5. Be2 {[%clk 0:02:56.2]}
5... a6 {[%clk 0:02:43.5]} 6. h3 {[%clk 0:02:55.2]} 6... Nc6 {[%clk 0:02:39.6]}
7. Qe3 {[%clk 0:02:55.4]} 7... g6 {[%clk 0:02:30]} 8. O-O {[%clk 0:02:55.1]}
8... Bg7 {[%clk 0:02:07.6]} 9. Rd1 {[%clk 0:02:54.3]} 9... Qc7 {[%clk
0:02:02.9]} 10. c4 {[%clk 0:02:53.6]} 10... O-O {[%clk 0:01:58.7]} 11. Nc3
{[%clk 0:02:53.4]} 11... h6 {[%clk 0:01:48]} 12. Rb1 {[%clk 0:02:44.8]} 12...
Be6 {[%clk 0:01:43.5]} 13. b3 {[%clk 0:02:44.1]} 13... Nd7 {[%clk 0:01:43.1]}
14. Bb2 {[%clk 0:02:43.8]} 14... Nc5 {[%clk 0:01:34.7]} 15. Nd5 {[%clk
0:02:40.2]} 15... Bxd5 {[%clk 0:01:31.3]} 16. exd5 {[%clk 0:02:41.1]} 16... Nb8
{[%clk 0:01:20.4]} 17. Bxg7 {[%clk 0:02:35.1]} 17... Kxg7 {[%clk 0:01:17.7]} 18.
Nd4 {[%clk 0:02:33.4]} 18... Nbd7 {[%clk 0:01:13.5]} 19. Qxe7 {[%clk 0:02:23.7]}
19... Rae8 {[%clk 0:01:13]} 20. Qh4 {[%clk 0:02:23.5]} 20... Re4 {[%clk
0:01:00.5]} 21. Qg3 {[%clk 0:02:23.3]} 21... Rfe8 {[%clk 0:00:50.3]} 22. Bf3
{[%clk 0:02:21.8]} 22... R4e5 {[%clk 0:00:41.6]} 23. Rbc1 {[%clk 0:01:59.1]}
23... Nf6 {[%clk 0:00:33.9]} 24. Qf4 {[%clk 0:01:51.2]} 24... Qe7 {[%clk
0:00:26.3]} 25. b4 {[%clk 0:01:40.8]} 25... Nce4 {[%clk 0:00:25.4]} 26. Bxe4
{[%clk 0:01:40]} 26... Rxe4 {[%clk 0:00:24.3]} 27. Qd2 {[%clk 0:01:39.1]} 27...
Qe5 {[%clk 0:00:19.4]} 28. Nf3 {[%clk 0:01:36.9]} 28... Qf5 {[%clk 0:00:19.4]}
29. Re1 {[%clk 0:01:33.7]} 29... Rxe1+ {[%clk 0:00:15.8]} 30. Rxe1 {[%clk
0:01:33.5]} 30... Ne4 {[%clk 0:00:12.3]} 31. Qd4+ {[%clk 0:01:32]} 31... Kh7
{[%clk 0:00:11]} 32. Nd2 {[%clk 0:01:17]} 32... Nf6 {[%clk 0:00:07.6]} 33. Rxe8
{[%clk 0:01:13.1]} 33... Nxe8 {[%clk 0:00:08]} 34. Qe4 {[%clk 0:01:12.9]} 34...
Qxe4 {[%clk 0:00:06.3]} 35. Nxe4 {[%clk 0:01:13.8]} 35... Kg7 {[%clk 0:00:07.1]}
36. c5 {[%clk 0:01:11.7]} 36... f5 {[%clk 0:00:04.3]} 37. cxd6 {[%clk
0:00:56.5]} 1-0

[Event "Late-Titled-Tuesday-Blitz-March-19-2024"]
[Site "Chess.com"]
[Date "2024.03.19"]
[Round "7"]
[White "rhungaski"]
[Black "Fonsofan"]
[Result "0-1"]
[WhiteElo "2617"]
[BlackElo "2741"]
[TimeControl "180+1"]
[EndTime "15:15:42 PDT"]
[Termination "Fonsofan won on time"]

1. e4 {[%clk 0:03:00.9]} 1... c6 {[%clk 0:03:00.1]} 2. d4 {[%clk 0:02:59.8]}
2... d5 {[%clk 0:02:59.5]} 3. e5 {[%clk 0:03:00.6]} 3... c5 {[%clk 0:02:59.1]}
4. c3 {[%clk 0:02:59.9]} 4... Nc6 {[%clk 0:02:57.2]} 5. Ne2 {[%clk 0:02:59.9]}
5... Bf5 {[%clk 0:02:48.7]} 6. dxc5 {[%clk 0:02:58.5]} 6... e6 {[%clk
0:02:40.9]} 7. Be3 {[%clk 0:02:36.1]} 7... a6 {[%clk 0:01:48]} 8. Nd4 {[%clk
0:02:22.4]} 8... Nge7 {[%clk 0:01:48.2]} 9. f4 {[%clk 0:02:07.9]} 9... h5 {[%clk
0:01:47.1]} 10. Nd2 {[%clk 0:02:05.1]} 10... g5 {[%clk 0:01:39.4]} 11. fxg5
{[%clk 0:01:59.8]} 11... Bg4 {[%clk 0:01:34.8]} 12. Qa4 {[%clk 0:01:58.9]} 12...
Qd7 {[%clk 0:01:32.6]} 13. h3 {[%clk 0:01:05.7]} 13... Bf5 {[%clk 0:01:05.1]}
14. N2f3 {[%clk 0:01:03.2]} 14... Bg7 {[%clk 0:01:03.8]} 15. Bf4 {[%clk
0:00:47.6]} 15... O-O {[%clk 0:00:57.2]} 16. Nxf5 {[%clk 0:00:42.5]} 16... Nxf5
{[%clk 0:00:58.1]} 17. g4 {[%clk 0:00:30.4]} 17... hxg4 {[%clk 0:00:45.5]} 18.
hxg4 {[%clk 0:00:31.3]} 18... Nfe7 {[%clk 0:00:45.8]} 19. Bd3 {[%clk 0:00:26.5]}
19... Ng6 {[%clk 0:00:46.2]} 20. Qc2 {[%clk 0:00:15.3]} 20... Ncxe5 {[%clk
0:00:28.6]} 21. Nxe5 {[%clk 0:00:12.4]} 21... Bxe5 {[%clk 0:00:28.8]} 22. Bxg6
{[%clk 0:00:11.1]} 22... Bxf4 {[%clk 0:00:28.4]} 23. Rh7 {[%clk 0:00:04.9]}
23... Qb5 {[%clk 0:00:17]} 24. Kf2 {[%clk 0:00:03.3]} 24... Bxg5 {[%clk
0:00:13.2]} 0-1